{"text_format":"2","workbook":"xlsx","n_sheets":2,"sheets":["Sheet1","Sheet2"],"not_rendered":{"charts":0,"images":0,"macros":0,"external_links":0,"defined_names":0,"comments":0,"pivot_tables":0},"unopened":[],"bounds":{"document_bytes":16777216,"sheet_cells":100000,"run_cost":"one","rows_first":2000,"rows_last":500,"rows_between":2000,"halvings":0,"cell_chars":16384,"cell_head_chars":4096},"cells_cut":0,"cells_raw":0,"read":"whole","date_system":"1900"}

{"sheet":"Sheet1","index":0,"n_rows":43,"n_cols":12,"rows_kept":43,"cut":false,"hidden":false,"merged":[]}
[]
[null,"2015년 논문발표 현황",null,null,"2016년 논문발표 현황",null,null,"2017년 논문발표 현황",null,null,"2018년 논문발표 현황"]
[null,"국내",92,null,"국내",151,null,"국내",{"$f":"SUM(I4:I27)","v":130},null,"국내",{"$f":"SUM(L4:L29)","v":155}]
[null,"계측제어기술그룹(원자력)",1,null,"EPCM통합지원실",1,null,"원전기기안전센터",4,null,"토목건축기술그룹(신사업)",2]
[null,"계측제어설계그룹",7,null,"계측제어기술그룹(원자력)",9,null,"원자력기술그룹(원자력)",10,null,"미래기술연구소",19]
[null,"기계기술그룹(원자력)",1,null,"계측제어설계그룹",12,null,"유체계통설계그룹",3,null,"기계기술그룹(원자력)",8]
[null,"기계배관기술그룹(플랜트)",2,null,"기계기술그룹(원자력)",8,null,"안전해석그룹",18,null,"계측제어기술그룹(원자력)",3]
[null,"기계설계그룹",15,null,"기계배관기술그룹(플랜트)",2,null,"계측제어설계그룹",5,null,"토목건축기술그룹(원자력)",8]
[null,"미래전력기술연구소",15,null,"기계설계그룹",15,null,"미래전력기술연구소",7,null,"안전해석그룹",12]
[null,"배관기술그룹(원자력)",1,null,"미래전력기술연구소",11,null,"전기계측기술그룹(신사업)",3,null,"전기계측기술그룹(신사업)",5]
[null,"사업관리기술그룹(원자력)",2,null,"배관기술그룹(원자력)",6,null,"토목건축기술그룹(신사업)",3,null,"재료연구기술그룹",6]
[null,"안전성평가기술그룹",4,null,"사업관리기술그룹(원자력)",10,null,"기계설계그룹",16,null,"사업관리기술그룹(원자력)",7]
[null,"안전해석그룹",10,null,"신재생환경기술그룹(플랜트)",1,null,"전기기술그룹(원자력)",5,null,"기계설계그룹",17]
[null,"원자력기술그룹(원자력)",3,null,"안전성평가연구기술그룹",5,null,"계측제어기술그룹(원자력)",6,null,"전기기술그룹(원자력)",7]
[null,"유체계통설계그룹",7,null,"안전해석그룹",8,null,"배관기술그룹(원자력)",5,null,"배관기술그룹(원자력)",7]
[null,"재료기술그룹",12,null,"원자력기술그룹(원자력)",12,null,"기계기술그룹(원자력)",8,null,"유체계통설계그룹",8]
[null,"전기기술그룹(원자력)",3,null,"원자로안전점검실",3,null,"사업관리기술그룹(원자력)",7,null,"원자력기술그룹(원자력)",13]
[null,"토목건축기술그룹(원자력)",6,null,"원전기기안전센터",1,null,"안전성평가연구기술그룹",4,null,"안전성평가연구기술그룹",4]
[null,"특수기술그룹",3,null,"유체계통설계그룹",8,null,"원자로안전점검실",2,null,"계측제어설계그룹",7]
[null,"해외",20,null,"재료연구기술그룹",16,null,"토목건축기술그룹(원자력)",6,null,"원전사후관리사업그룹",3]
[null,"계측제어기술그룹(원자력)",1,null,"전기계측기술그룹(플랜트)",3,null,"재료연구기술그룹",8,null,"기술전략실",0]
[null,"계측제어설계그룹",2,null,"전기기술그룹(원자력)",8,null,"원전해체사업실",4,null,"원자력사업처",0]
[null,"기계설계그룹",1,null,"토목건축기술그룹(원자력)",10,null,"기계배관기술그룹(신사업)",1,null,"안전성평가기술그룹(원자력)",7]
[null,"미래전력기술연구소",2,null,"플랜트사업개발처",2,null,"원자력사업처",2,null,"원전안전센터",3]
[null,"배관기술그룹(원자력)",2,null,"해외",29,null,"신사업개발처",1,null,"재료기술그룹(원자력)",4]
[null,"안전해석그룹",2,null,"계측제어기술그룹(원자력)",1,null,"EPCM통합지원실(신사업)",1,null,"원자로사업개발처",1]
[null,"원자력기술그룹(원자력)",2,null,"계측제어설계그룹",3,null,"신재생환경기술그룹(신사업)",1,null,"신사업개발처",1]
[null,"유체계통설계그룹",2,null,"기계설계그룹",3,null,"해외",{"$f":"SUM(I29:I40)","v":33},null,"기계배관기술그룹(신사업)",2]
[null,"재료기술그룹",4,null,"기획처",1,null,"원자력기술그룹(원자력)",2,null,"환경기술그룹(신사업)",1]
[null,"전기기술그룹(원자력)",1,null,"미래전력기술연구소",2,null,"유체계통설계그룹",2,null,"해외",{"$f":"SUM(L31:L42)","v":19}]
[null,"토목건축기술그룹(플랜트)",1,null,"배관기술그룹(원자력)",2,null,"안전해석그룹",7,null,"미래기술연구소",1]
[null,"총합계",112,null,"안전성평가연구기술그룹",7,null,"계측제어설계그룹",7,null,"토목건축기술그룹(원자력)",3]
[{"$nulls":4},"안전해석그룹",2,null,"미래전력기술연구소",2,null,"안전해석그룹",3]
[{"$nulls":4},"원자력기술그룹(원자력)",2,null,"전기계측기술그룹(신사업)",2,null,"기계설계그룹",3]
[{"$nulls":4},"유체계통설계그룹",1,null,"기계설계그룹",4,null,"유체계통설계그룹",1]
[{"$nulls":4},"재료연구기술그룹",2,null,"전기기술그룹(원자력)",1,null,"원자력기술그룹(원자력)",2]
[{"$nulls":4},"전기계측기술그룹(플랜트)",1,null,"계측제어기술그룹(원자력)",1,null,"안전성평가연구기술그룹",1]
[{"$nulls":4},"토목건축기술그룹(원자력)",2,null,"배관기술그룹(원자력)",1,null,"계측제어설계그룹",1]
[{"$nulls":4},"총합계",{"$f":"F3+F25","v":180},null,"안전성평가연구기술그룹",2,null,"기술전략실",1]
[{"$nulls":7},"토목건축기술그룹(원자력)",2,null,"원자력사업처",1]
[{"$nulls":7},"총합계",{"$f":"I3+I28","v":163},null,"안전성평가기술그룹(원자력)",1]
[{"$nulls":10},"재료기술그룹(원자력)",1]
[{"$nulls":10},"총합계",{"$f":"L3+L30","v":174}]

{"sheet":"Sheet2","index":1,"n_rows":175,"n_cols":13,"rows_kept":175,"cut":false,"hidden":true,"merged":[]}
[null,null,"등록자부서","국내","해외","사내"]
[null,null,"토목건축기술그룹(신사업)",{"$f":"COUNTIF($M$2:$M$175,$C2&D$1)","v":1},{"$f":"COUNTIF($M$2:$M$175,$C2&E$1)","v":0},{"$f":"COUNTIF($M$2:$M$175,$C2&F$1)","v":1},{"$f":"D2+F2","v":2},{"$nulls":5},"토목건축기술그룹(신사업)국내"]
[null,null,"미래기술연구소",{"$f":"COUNTIF($M$2:$M$175,$C3&D$1)","v":12},1,7,{"$f":"D3+F3","v":19},{"$nulls":5},"미래기술연구소국내"]
[null,null,"기계기술그룹(원자력)",0,0,8,8,{"$nulls":5},"기계기술그룹(원자력)사내"]
[null,null,"계측제어기술그룹(원자력)",0,0,3,3,{"$nulls":5},"계측제어기술그룹(원자력)사내"]
[null,null,"토목건축기술그룹(원자력)",5,3,3,8,{"$nulls":5},"토목건축기술그룹(원자력)사내"]
[null,null,"안전해석그룹",5,3,7,12,{"$nulls":5},"안전해석그룹사내"]
[null,null,"전기계측기술그룹(신사업)",0,0,5,5,{"$nulls":5},"전기계측기술그룹(신사업)사내"]
[null,null,"재료연구기술그룹",6,0,0,6,{"$nulls":5},"토목건축기술그룹(원자력)해외"]
[null,null,"사업관리기술그룹(원자력)",1,0,6,7,{"$nulls":5},"미래기술연구소사내"]
[null,null,"기계설계그룹",16,3,1,17,{"$nulls":5},"재료연구기술그룹국내"]
[null,null,"전기기술그룹(원자력)",0,0,7,7,{"$nulls":5},"재료연구기술그룹국내"]
[null,null,"배관기술그룹(원자력)",1,0,6,7,{"$nulls":5},"재료연구기술그룹국내"]
[null,null,"유체계통설계그룹",2,1,6,8,{"$nulls":5},"미래기술연구소사내"]
[null,null,"원자력기술그룹(원자력)",8,2,5,13,{"$nulls":5},"미래기술연구소해외"]
[null,null,"안전성평가연구기술그룹",4,1,0,4,{"$nulls":5},"안전해석그룹해외"]
[null,null,"계측제어설계그룹",5,1,2,7,{"$nulls":5},"사업관리기술그룹(원자력)사내"]
[null,null,"원전사후관리사업그룹",2,0,1,3,{"$nulls":5},"기계설계그룹해외"]
[null,null,"기술전략실",0,1,0,0,{"$nulls":5},"기계설계그룹해외"]
[null,null,"원자력사업처",0,1,0,0,{"$nulls":5},"전기기술그룹(원자력)사내"]
[null,null,"안전성평가기술그룹(원자력)",7,1,0,7,{"$nulls":5},"배관기술그룹(원자력)사내"]
[null,null,"원전안전센터",1,0,2,3,{"$nulls":5},"유체계통설계그룹사내"]
[null,null,"재료기술그룹(원자력)",4,1,0,4,{"$nulls":5},"원자력기술그룹(원자력)사내"]
[null,null,"원자로사업개발처",1,0,0,1,{"$nulls":5},"기계기술그룹(원자력)사내"]
[null,null,"신사업개발처",0,0,1,1,{"$nulls":5},"토목건축기술그룹(신사업)사내"]
[null,null,"기계배관기술그룹(신사업)",0,0,2,2,{"$nulls":5},"재료연구기술그룹국내"]
[null,null,"환경기술그룹(신사업)",0,0,1,1,{"$nulls":5},"안전성평가연구기술그룹해외"]
[null,null,null,{"$f":"SUM(D2:D27)","v":81},{"$f":"SUM(E2:E27)","v":19},74,155,{"$nulls":5},"재료연구기술그룹국내"]
[{"$nulls":12},"미래기술연구소국내"]
[{"$nulls":12},"계측제어설계그룹국내"]
[{"$nulls":12},"미래기술연구소국내"]
[{"$nulls":12},"안전성평가연구기술그룹국내"]
[{"$nulls":12},"배관기술그룹(원자력)국내"]
[{"$nulls":12},"안전성평가연구기술그룹국내"]
[{"$nulls":12},"안전성평가연구기술그룹국내"]
[{"$nulls":12},"안전성평가연구기술그룹국내"]
[{"$nulls":12},"토목건축기술그룹(원자력)국내"]
[{"$nulls":12},"기계설계그룹해외"]
[{"$nulls":12},"안전해석그룹국내"]
[{"$nulls":12},"미래기술연구소국내"]
[{"$nulls":12},"토목건축기술그룹(원자력)국내"]
[{"$nulls":12},"원자력기술그룹(원자력)해외"]
[{"$nulls":12},"전기기술그룹(원자력)사내"]
[{"$nulls":12},"계측제어기술그룹(원자력)사내"]
[{"$nulls":12},"미래기술연구소사내"]
[{"$nulls":12},"안전해석그룹사내"]
[{"$nulls":12},"기계기술그룹(원자력)사내"]
[{"$nulls":12},"원전사후관리사업그룹사내"]
[{"$nulls":12},"미래기술연구소국내"]
[{"$nulls":12},"사업관리기술그룹(원자력)사내"]
[{"$nulls":12},"배관기술그룹(원자력)사내"]
[{"$nulls":12},"계측제어설계그룹사내"]
[{"$nulls":12},"토목건축기술그룹(원자력)해외"]
[{"$nulls":12},"전기기술그룹(원자력)사내"]
[{"$nulls":12},"배관기술그룹(원자력)사내"]
[{"$nulls":12},"사업관리기술그룹(원자력)사내"]
[{"$nulls":12},"안전해석그룹사내"]
[{"$nulls":12},"재료연구기술그룹국내"]
[{"$nulls":12},"전기계측기술그룹(신사업)사내"]
[{"$nulls":12},"미래기술연구소사내"]
[{"$nulls":12},"기술전략실해외"]
[{"$nulls":12},"원자력사업처해외"]
[{"$nulls":12},"토목건축기술그룹(원자력)국내"]
[{"$nulls":12},"안전성평가기술그룹(원자력)해외"]
[{"$nulls":12},"배관기술그룹(원자력)사내"]
[{"$nulls":12},"사업관리기술그룹(원자력)사내"]
[{"$nulls":12},"기계기술그룹(원자력)사내"]
[{"$nulls":12},"유체계통설계그룹사내"]
[{"$nulls":12},"안전해석그룹사내"]
[{"$nulls":12},"전기기술그룹(원자력)사내"]
[{"$nulls":12},"안전해석그룹해외"]
[{"$nulls":12},"안전해석그룹해외"]
[{"$nulls":12},"원자력기술그룹(원자력)해외"]
[{"$nulls":12},"유체계통설계그룹해외"]
[{"$nulls":12},"토목건축기술그룹(원자력)사내"]
[{"$nulls":12},"미래기술연구소사내"]
[{"$nulls":12},"토목건축기술그룹(원자력)해외"]
[{"$nulls":12},"원전안전센터사내"]
[{"$nulls":12},"계측제어설계그룹국내"]
[{"$nulls":12},"계측제어설계그룹국내"]
[{"$nulls":12},"안전성평가기술그룹(원자력)국내"]
[{"$nulls":12},"재료기술그룹(원자력)국내"]
[{"$nulls":12},"안전성평가기술그룹(원자력)국내"]
[{"$nulls":12},"미래기술연구소국내"]
[{"$nulls":12},"계측제어설계그룹국내"]
[{"$nulls":12},"기계설계그룹국내"]
[{"$nulls":12},"안전성평가기술그룹(원자력)국내"]
[{"$nulls":12},"원자력기술그룹(원자력)국내"]
[{"$nulls":12},"미래기술연구소국내"]
[{"$nulls":12},"원자력기술그룹(원자력)국내"]
[{"$nulls":12},"기계설계그룹국내"]
[{"$nulls":12},"원자력기술그룹(원자력)국내"]
[{"$nulls":12},"안전성평가기술그룹(원자력)국내"]
[{"$nulls":12},"계측제어설계그룹국내"]
[{"$nulls":12},"유체계통설계그룹국내"]
[{"$nulls":12},"안전성평가기술그룹(원자력)국내"]
[{"$nulls":12},"원전안전센터국내"]
[{"$nulls":12},"재료기술그룹(원자력)국내"]
[{"$nulls":12},"원자로사업개발처국내"]
[{"$nulls":12},"안전성평가기술그룹(원자력)국내"]
[{"$nulls":12},"토목건축기술그룹(원자력)국내"]
[{"$nulls":12},"안전성평가기술그룹(원자력)국내"]
[{"$nulls":12},"유체계통설계그룹국내"]
[{"$nulls":12},"재료기술그룹(원자력)국내"]
[{"$nulls":12},"원자력기술그룹(원자력)국내"]
[{"$nulls":12},"원자력기술그룹(원자력)국내"]
[{"$nulls":12},"재료기술그룹(원자력)해외"]
[{"$nulls":12},"기계설계그룹국내"]
[{"$nulls":12},"안전해석그룹국내"]
[{"$nulls":12},"계측제어기술그룹(원자력)사내"]
[{"$nulls":12},"배관기술그룹(원자력)사내"]
[{"$nulls":12},"안전해석그룹국내"]
[{"$nulls":12},"안전해석그룹국내"]
[{"$nulls":12},"전기기술그룹(원자력)사내"]
[{"$nulls":12},"원자력기술그룹(원자력)사내"]
[{"$nulls":12},"사업관리기술그룹(원자력)사내"]
[{"$nulls":12},"기계설계그룹국내"]
[{"$nulls":12},"신사업개발처사내"]
[{"$nulls":12},"안전해석그룹사내"]
[{"$nulls":12},"배관기술그룹(원자력)사내"]
[{"$nulls":12},"기계배관기술그룹(신사업)사내"]
[{"$nulls":12},"원자력기술그룹(원자력)국내"]
[{"$nulls":12},"원자력기술그룹(원자력)사내"]
[{"$nulls":12},"전기계측기술그룹(신사업)사내"]
[{"$nulls":12},"원자력기술그룹(원자력)국내"]
[{"$nulls":12},"안전해석그룹국내"]
[{"$nulls":12},"원전사후관리사업그룹국내"]
[{"$nulls":12},"원전사후관리사업그룹국내"]
[{"$nulls":12},"사업관리기술그룹(원자력)국내"]
[{"$nulls":12},"계측제어설계그룹해외"]
[{"$nulls":12},"환경기술그룹(신사업)사내"]
[{"$nulls":12},"미래기술연구소국내"]
[{"$nulls":12},"기계설계그룹국내"]
[{"$nulls":12},"기계설계그룹국내"]
[{"$nulls":12},"미래기술연구소국내"]
[{"$nulls":12},"기계설계그룹국내"]
[{"$nulls":12},"기계설계그룹국내"]
[{"$nulls":12},"기계설계그룹국내"]
[{"$nulls":12},"기계설계그룹국내"]
[{"$nulls":12},"원자력기술그룹(원자력)국내"]
[{"$nulls":12},"미래기술연구소국내"]
[{"$nulls":12},"기계설계그룹국내"]
[{"$nulls":12},"미래기술연구소국내"]
[{"$nulls":12},"기계설계그룹국내"]
[{"$nulls":12},"기계설계그룹국내"]
[{"$nulls":12},"기계설계그룹국내"]
[{"$nulls":12},"기계설계그룹국내"]
[{"$nulls":12},"토목건축기술그룹(원자력)국내"]
[{"$nulls":12},"기계설계그룹국내"]
[{"$nulls":12},"재료기술그룹(원자력)국내"]
[{"$nulls":12},"계측제어설계그룹사내"]
[{"$nulls":12},"기계배관기술그룹(신사업)사내"]
[{"$nulls":12},"유체계통설계그룹사내"]
[{"$nulls":12},"원자력기술그룹(원자력)사내"]
[{"$nulls":12},"원자력기술그룹(원자력)사내"]
[{"$nulls":12},"기계기술그룹(원자력)사내"]
[{"$nulls":12},"기계기술그룹(원자력)사내"]
[{"$nulls":12},"기계기술그룹(원자력)사내"]
[{"$nulls":12},"유체계통설계그룹사내"]
[{"$nulls":12},"미래기술연구소국내"]
[{"$nulls":12},"미래기술연구소사내"]
[{"$nulls":12},"기계설계그룹사내"]
[{"$nulls":12},"전기계측기술그룹(신사업)사내"]
[{"$nulls":12},"미래기술연구소사내"]
[{"$nulls":12},"안전해석그룹사내"]
[{"$nulls":12},"유체계통설계그룹사내"]
[{"$nulls":12},"토목건축기술그룹(원자력)사내"]
[{"$nulls":12},"전기기술그룹(원자력)사내"]
[{"$nulls":12},"사업관리기술그룹(원자력)사내"]
[{"$nulls":12},"안전해석그룹사내"]
[{"$nulls":12},"원전안전센터사내"]
[{"$nulls":12},"전기계측기술그룹(신사업)사내"]
[{"$nulls":12},"기계기술그룹(원자력)사내"]
[{"$nulls":12},"유체계통설계그룹사내"]
[{"$nulls":12},"전기기술그룹(원자력)사내"]